bitfinex-derivatives/quotes_SOLF0:USTF0_20250630
["timestamp","ask_amount","ask_price","bid_price","bid_amount"]
[1751255442705,5.27,151.75,151.74,32.62]
[1751255443099,5.27,151.75,151.74,39.08925897]
[1751255455720,5.27,151.75,151.74,32.62]
[1751255459919,3.05481856,151.76,151.71,11.41569573]
[1751255460115,3.05481856,151.76,151.74,6.46925897]
[1751255460622,5.2705,151.74,151.72,37.811]
[1751255461124,5.2705,151.74,151.73,6.46925897]
[1751255468830,66.96957553,151.79,151.73,9.52407753]
[1751255469135,66.96957553,151.79,151.76,6.46925897]
[1751255469834,3.05481856,151.78,151.73,11.41479573]
[1751255470034,3.05481856,151.78,151.75,6.46925897]
[1751255470334,5.2699,151.76,151.75,6.46925897]
[1751255470825,5.2694,151.77,151.75,6.46925897]
[1751255471030,66.96957553,151.79,151.76,6.46925897]
[1751255471532,5.2691,151.78,151.75,5.2698]
[1751255471732,5.2691,151.78,151.76,6.46925897]
[1751255472132,5.2691,151.78,151.75,5.2698]
[1751255472335,5.2691,151.78,151.76,11.73885897]
[1751255472633,5.2691,151.78,151.76,6.46925897]
[1751255472834,5.2691,151.78,151.75,5.2698]
[1751255473036,5.2691,151.78,151.76,6.46925897]
[1751255473437,5.2691,151.78,151.75,5.2698]
[1751255473629,5.2691,151.78,151.76,6.46925897]
[1751255473829,5.2687,151.79,151.76,39.00925897]
[1751255474031,5.2687,151.79,151.77,6.46925897]
[1751255474235,3.05481856,151.82,151.77,6.46925897]
[1751255474434,3.05481856,151.82,151.76,37.8095]
[1751255474633,3.05481856,151.82,151.77,6.46925897]
[1751255475235,5.2689,151.79,151.76,37.8095]
[1751255475436,3.05481856,151.8,151.77,6.46925897]
[1751255475637,5.2689,151.78,151.77,6.46925897]
[1751255475838,3.05481856,151.8,151.76,32.54]
[1751255476037,3.05481856,151.8,151.76,39.00925897]
[1751255476539,5.2693,151.77,151.76,39.00925897]
[1751255477138,5.2693,151.77,151.76,32.54]
[1751255490946,5.2693,151.77,151.74,39.74572861]
[1751255491147,5.2693,151.77,151.76,6.46925897]
[1751255491651,5.2693,151.77,151.74,39.74572861]
[1751255491852,5.2693,151.77,151.76,6.46925897]
[1751255492250,5.2693,151.77,151.74,45.90794468]
[1751255492552,5.2693,151.77,151.76,6.46925897]
[1751255494652,5.2693,151.77,151.74,45.90794468]
[1751255494853,5.2693,151.77,151.76,6.46925897]
[1751255495553,5.2693,151.77,151.75,6.16221607]
[1751255495755,5.2693,151.77,151.76,6.46925897]
[1751255496155,5.2693,151.77,151.74,45.90795814]
[1751255496355,5.2693,151.77,151.76,6.46925897]
[1751255498456,5.2696,151.76,151.75,6.16221607]
[1751255500552,5.2696,151.76,151.75,12.63147504]
[1751255500757,5.2696,151.76,151.75,6.46925897]
[1751255508166,5.2696,151.76,151.75,12.63147504]
[1751255509761,1.95585046,151.76,151.71,8.21628809]
[1751255509964,1.95585046,151.72,151.71,8.21628809]
[1751255510265,5.2713,151.71,151.7,32.52]
[1751255510764,5.2713,151.71,151.7,38.98925897]
[1751255511167,7.22715046,151.71,151.7,38.98925897]
[1751255515568,1.95585046,151.71,151.67,45.88898809]
[1751255515764,1.95585046,151.7,151.69,6.46925897]
[1751255516069,7.22755046,151.7,151.69,6.46925897]
[1751255516265,5.2717,151.7,151.67,32.4]
[1751255516469,5.2717,151.7,151.69,6.46925897]
[1751255517165,5.2717,151.7,151.67,39.62855046]
[1751255517370,5.2717,151.7,151.69,6.46925897]
[1751255517767,5.2717,151.7,151.67,39.62855046]
[1751255517964,5.2717,151.7,151.69,6.46925897]
[1751255518471,5.2717,151.7,151.67,39.62855046]
[1751255518674,5.2717,151.7,151.69,6.46925897]
[1751255519170,5.2717,151.7,151.67,39.62855046]
[1751255519364,5.2717,151.7,151.69,6.46925897]
[1751255519768,5.2717,151.7,151.67,39.62855046]
[1751255519961,5.2717,151.7,151.69,6.46925897]
[1751255520470,5.2717,151.7,151.67,39.62855046]
[1751255520768,5.2717,151.7,151.69,6.46925897]
[1751255521269,5.2717,151.7,151.67,39.62855046]
[1751255521473,5.2717,151.7,151.69,6.46925897]
[1751255522680,5.2717,151.7,151.67,39.62855046]
[1751255522880,5.2717,151.7,151.69,6.46925897]
[1751255524682,5.2717,151.7,151.67,39.62855046]
[1751255524883,5.2717,151.7,151.69,6.46925897]
[1751255525180,7.22755046,151.7,151.69,6.46925897]
[1751255525373,5.2722,151.69,151.67,34.35585046]
[1751255525781,5.2722,151.69,151.68,6.46925897]
[1751255527684,7.22765046,151.7,151.68,6.46925897]
[1751255527880,5.2718,151.7,151.68,6.46925897]
[1751255528085,68.92542599,151.74,151.69,13.69710943]
[1751255528281,68.92542599,151.74,151.7,8.42510943]
[1751255528582,5.2707,151.73,151.71,6.46925897]
[1751255528781,1.95585046,151.75,151.72,6.46925897]
[1751255529488,5.2705,151.74,151.72,6.46925897]
[1751255532693,5.2705,151.74,151.71,39.64715046]
[1751255532891,5.2705,151.74,151.72,6.46925897]
[1751255536902,7.22635046,151.74,151.72,6.46925897]
[1751255542509,5.2705,151.74,151.72,6.46925897]
[1751255544807,5.2701,151.75,151.73,6.46925897]
[1751255545008,1.95585046,151.77,151.74,8.42510943]
[1751255545413,5.2699,151.76,151.74,8.42510943]
[1751255548513,5.27,151.75,151.74,8.42510943]
[1751255549216,5.2698,151.76,151.74,8.42510943]
[1751255549511,1.95585046,151.77,151.75,38.82925897]
[1751255549712,7.22525046,151.77,151.75,38.82925897]
[1751255554422,7.22525046,151.77,151.76,6.46925897]
[1751255554423,5.2694,151.77,151.76,6.46925897]
[1751255554911,5.2694,151.77,151.75,37.6299]
[1751255555113,5.2694,151.77,151.76,6.46925897]
[1751255555622,5.2694,151.77,151.75,37.6299]
[1751255555811,5.2694,151.77,151.76,6.46925897]
[1751255556520,5.2694,151.77,151.75,37.6299]
[1751255556723,5.2694,151.77,151.76,6.46925897]
[1751255557221,5.2694,151.77,151.75,37.6299]
[1751255557414,5.2694,151.77,151.76,6.46925897]
[1751255557614,5.2694,151.77,151.75,37.6299]
[1751255557810,5.2694,151.77,151.76,6.46925897]
[1751255558518,5.2694,151.77,151.75,37.6299]
[1751255558722,5.2694,151.77,151.76,6.46925897]
[1751255559322,5.2694,151.77,151.75,37.6299]
[1751255559619,5.2694,151.77,151.76,6.46925897]
[1751255560416,5.2694,151.77,151.75,37.6299]
[1751255560717,5.2694,151.77,151.76,6.46925897]
[1751255561118,5.2694,151.77,151.75,37.6299]
[1751255561413,74.19452599,151.78,151.76,6.46925897]
[1751255561823,74.19452599,151.78,151.75,37.6299]
[1751255562024,74.19452599,151.78,151.76,6.46925897]
[1751255562323,74.19452599,151.78,151.76,11.73885897]
[1751255562523,68.92542599,151.78,151.76,5.2696]
[1751255563525,74.19432599,151.78,151.76,5.2696]
[1751255563827,68.92542599,151.78,151.76,5.2696]
[1751255564026,66.96957553,151.78,151.77,13.69440943]
[1751255565326,5.2683,151.8,151.77,13.69440943]
[1751255565522,5.2683,151.8,151.78,6.46925897]
[1751255565726,5.2683,151.8,151.78,11.73815897]
[1751255565926,5.2683,151.8,151.78,5.2689]
[1751255566429,7.22385046,151.81,151.78,5.2689]
[1751255567324,5.2676,151.82,151.8,1.95585046]
[1751255567526,148.99752144,151.85,151.8,8.42510943]
[1751255567828,1.95585046,151.83,151.8,8.42510943]
[1751255568029,1.95585046,151.83,151.8,6.46925897]
[1751255568324,7.22335046,151.83,151.8,11.73725897]
[1751255568834,1.95585046,151.83,151.81,5.2676]
[1751255569030,68.92542599,151.85,151.82,8.42510943]
[1751255569221,68.92542599,151.85,151.82,1.95585046]
[1751255569420,74.19212599,151.85,151.82,1.95585046]
[1751255569732,68.92542599,151.85,151.83,6.46925897]
[1751255570230,68.92542599,151.85,151.82,1.95585046]
[1751255570425,68.92542599,151.85,151.83,6.46925897]
[1751255570633,66.96957553,151.88,151.83,6.46925897]
[1751255570829,1.95585046,151.86,151.82,7.22315046]
[1751255571126,1.95585046,151.86,151.83,38.82925897]
[1751255571629,7.22225046,151.86,151.83,37.6272]
[1751255572733,7.22225046,151.86,151.83,44.09645897]
[1751255573534,1.95585046,151.85,151.83,44.09645897]
[1751255573733,1.95585046,151.85,151.83,38.82925897]
[1751255573935,7.22205046,151.86,151.83,38.82925897]
[1751255574736,5.2659,151.87,151.84,8.42510943]
[1751255574935,5.2659,151.87,151.85,6.46925897]
[1751255575240,1.95585046,151.89,151.86,8.42510943]
[1751255575440,5.2653,151.89,151.87,6.46925897]
[1751255575938,5.2653,151.89,151.86,7.22195046]
[1751255576134,5.2653,151.89,151.87,6.46925897]
[1751255576537,5.2653,151.89,151.86,7.22195046]
[1751255576737,5.2653,151.89,151.87,6.46925897]
[1751255577439,5.2653,151.89,151.86,7.22195046]
[1751255577642,5.2653,151.89,151.87,6.46925897]
[1751255578650,5.2653,151.89,151.86,7.22195046]
[1751255578837,5.2653,151.89,151.87,6.46925897]
[1751255579142,66.96957553,151.93,151.88,8.42510943]
[1751255579143,66.96957553,151.92,151.88,8.42510943]
[1751255579342,68.92542599,151.92,151.9,6.46925897]
[1751255579738,68.92542599,151.92,151.89,1.95585046]
[1751255579933,68.92542599,151.92,151.9,6.46925897]
[1751255580139,66.96957553,151.92,151.9,6.46925897]
[1751255580336,66.96957553,151.92,151.9,8.42510943]
[1751255580941,66.96957553,151.92,151.9,7.22035046]
[1751255581136,1.95585046,151.95,151.91,40.76510943]
[1751255581340,1.95585046,151.94,151.91,40.76510943]
[1751255581641,1.95585046,151.94,151.91,46.02930943]
[1751255581942,70.01879621,151.96,151.91,44.07345897]
[1751255582144,5.2632,151.95,151.91,44.07345897]
[1751255582539,66.96957553,151.96,151.92,6.46925897]
[1751255583038,5.2631,151.95,151.92,6.46925897]
[1751255583244,66.96957553,151.96,151.92,6.46925897]
[1751255584043,5.2631,151.95,151.92,6.46925897]
[1751255584945,5.2631,151.95,151.93,6.46925897]
[1751255585340,66.96957553,151.96,151.94,6.46925897]
[1751255585540,66.96957553,152.0,151.95,38.80925897]
[1751255585749,5.2619,151.99,151.96,6.46925897]
[1751255586947,5.262,151.98,151.96,6.46925897]
[1751255587750,3.04922068,151.97,151.93,32.32]
[1751255587950,3.04922068,151.97,151.94,6.46925897]
[1751255588444,5.2631,151.95,151.93,32.32]
[1751255588642,5.2631,151.95,151.94,6.46925897]
[1751255589040,66.96957553,151.99,151.94,9.51847965]
[1751255589243,66.96957553,151.99,151.97,6.46925897]
[1751255589443,66.96957553,151.99,151.97,38.78925897]
[1751255589648,66.96957553,151.99,151.97,32.32]
[1751255590446,72.23137553,151.99,151.97,32.32]
[1751255591953,5.262,151.98,151.97,32.32]
[1751255594652,72.23137553,151.99,151.97,32.32]
[1751255597755,72.23137553,151.99,151.97,38.78925897]
[1751255598954,66.96957553,151.99,151.98,6.46925897]
[1751255599158,66.96957553,151.99,151.97,38.78925897]
[1751255599556,66.96957553,151.99,151.98,6.46925897]
[1751255600059,66.96957553,151.99,151.97,32.32]
[1751255600260,66.96957553,151.99,151.98,6.46925897]
[1751255600762,66.96957553,151.99,151.97,32.32]
[1751255601059,66.96957553,151.99,151.98,6.46925897]
[1751255601259,72.23117553,151.99,151.98,6.46925897]
[1751255601561,72.23117553,151.99,151.97,32.32]
[1751255601756,72.23117553,151.99,151.98,6.46925897]
[1751255602459,72.23117553,151.99,151.97,32.32]
[1751255602660,72.23117553,151.99,151.98,6.46925897]
[1751255603460,72.23117553,151.99,151.97,32.32]
[1751255603759,72.23117553,151.99,151.98,6.46925897]
[1751255603960,66.96957553,151.99,151.98,6.46925897]
[1751255605262,66.96957553,151.99,151.98,11.73125897]
[1751255605959,66.96957553,151.99,151.98,6.46925897]
[1751255606161,72.23147553,151.99,151.97,32.32]
[1751255606366,66.96957553,151.99,151.97,38.78925897]
[1751255607263,66.96957553,151.99,151.97,32.32]
[1751255607662,5.262,151.98,151.97,32.32]
[1751255613975,72.23137553,151.99,151.97,32.32]
[1751255614270,66.96957553,151.99,151.97,32.32]
[1751255614872,5.262,151.98,151.97,32.32]
[1751255626985,66.96957553,152.05,151.97,41.83847965]
[1751255627176,66.96957553,152.05,152.02,6.46925897]
[1751255627377,76.14863524,152.09,152.02,6.46925897]
[1751255627676,5.2601,152.04,152.02,6.46925897]
[1751255627884,5.2601,152.04,152.03,6.46925897]
[1751255628279,5.2601,152.04,152.01,37.7008]
[1751255628483,5.2601,152.04,152.03,6.46925897]
[1751255628983,5.2601,152.04,152.01,37.7008]
[1751255629182,5.2601,152.04,152.03,6.46925897]
[1751255629674,5.2601,152.04,152.01,37.7008]
[1751255629879,5.2601,152.04,152.03,6.46925897]
[1751255630278,5.2601,152.04,152.01,37.7008]
[1751255630478,5.2601,152.04,152.03,6.46925897]
[1751255631283,5.2601,152.04,152.01,37.7008]
[1751255631584,5.2601,152.04,152.03,6.46925897]
[1751255632075,5.2601,152.04,152.01,37.7008]
[1751255632280,5.2606,152.02,152.01,32.44]
[1751255632481,3.04426638,152.03,151.98,32.44]
[1751255632678,66.96957553,152.02,151.99,6.46925897]
[1751255632878,66.96957553,152.02,151.98,32.44]
[1751255633079,66.96957553,152.02,151.99,6.46925897]
[1751255633488,5.2616,152.0,151.98,32.44]
[1751255633689,5.2616,152.0,151.99,6.46925897]
[1751255633891,66.96957553,152.02,151.99,6.46925897]
[1751255634187,66.96957553,152.02,152.0,6.46925897]
[1751255635590,5.2611,152.01,152.0,6.46925897]
[1751255636588,66.96957553,152.02,152.0,6.46925897]
[1751255636786,66.96957553,152.02,152.01,6.46925897]
[1751255637290,5.2611,152.01,151.98,40.74616638]
[1751255637793,5.2611,152.01,152.0,6.46925897]
[1751255648199,72.23027553,152.02,152.0,11.73045897]
[1751255648501,72.23027553,152.02,152.01,6.46925897]
[1751255651197,5.2616,151.99,151.98,32.44]
[1751255651398,3.04426638,151.99,151.95,38.70309487]
[1751255651596,3.04426638,151.99,151.96,6.46925897]
[1751255651796,5.2623,151.97,151.96,6.46925897]
[1751255652405,5.2627,151.96,151.95,32.56]
[1751255652698,5.2627,151.96,151.89,10.57588809]
[1751255652699,66.96957553,151.96,151.9,32.56]
[1751255652893,8.30866638,151.91,151.9,32.56]
[1751255653089,3.04426638,151.92,151.89,32.56]
[1751255653494,5.2648,151.9,151.89,32.56]
[1751255654293,8.30906638,151.9,151.89,32.56]
[1751255654694,5.2654,151.89,151.87,32.56]
[1751255654897,3.04426638,151.9,151.87,32.56]
[1751255655706,3.04426638,151.9,151.86,2.2464]
[1751255655901,3.04426638,151.88,151.86,32.56]
[1751255657204,5.2661,151.87,151.86,32.56]
[1751255657406,66.96957553,151.95,151.86,32.56]
[1751255657407,3.04426638,151.9,151.86,32.56]
[1751255657907,5.2657,151.88,151.86,32.56]
[1751255661911,5.2658,151.87,151.86,32.56]
[1751255662104,3.04426638,151.9,151.86,32.56]
[1751255662806,5.2657,151.88,151.86,32.56]
[1751255664209,5.2652,151.89,151.86,32.56]
[1751255665116,5.2652,151.89,151.86,37.8261]
[1751255667015,5.2652,151.89,151.86,32.56]
[1751255667213,5.2656,151.88,151.86,32.56]
[1751255669625,5.2652,151.89,151.86,37.8261]
[1751255671126,5.2655,151.88,151.86,37.8261]
[1751255671422,5.2655,151.88,151.86,32.56]
[1751255673224,5.2658,151.87,151.86,32.56]
[1751255692946,5.2656,151.88,151.86,32.56]
[1751255693339,5.2656,151.88,151.86,111.52426638]
[1751255693847,5.2653,151.89,151.86,116.79036638]
[1751255699454,5.2655,151.88,151.86,116.79036638]
[1751255699749,5.2655,151.88,151.87,1.95226602]
[1751255703655,5.2653,151.89,151.87,1.95226602]
[1751255703862,5.2653,151.89,151.88,1.95226602]
[1751255705558,5.2653,151.89,151.87,1.95226602]
[1751255708157,5.2654,151.88,151.86,110.43226602]
[1751255709253,5.2658,151.87,151.86,108.48]
[1751255709461,1.95226602,151.87,151.86,32.42]
[1751255710054,7.21806602,151.87,151.86,32.42]
[1751255711856,1.95226602,151.87,151.83,355.18]
[1751255712056,1.95226602,151.85,151.84,32.42]
[1751255712557,1.95226602,151.86,151.84,32.42]
[1751255712759,1.95226602,151.87,151.84,32.42]
[1751255713157,5.2665,151.85,151.84,32.42]
[1751255714061,5.2663,151.86,151.84,34.37226602]
[1751255714861,5.2659,151.87,151.85,1.95226602]
[1751255715355,68.92184155,151.91,151.86,1.95226602]
[1751255715552,68.92184155,151.91,151.87,1.95226602]
[1751255715756,66.96957553,151.91,151.88,32.42]
[1751255716159,5.40227839,151.93,151.88,32.42]
[1751255716561,5.2651,151.89,151.88,32.42]
[1751255729573,3.05077839,151.9,151.83,6.15591628]
[1751255729771,3.05077839,151.88,151.84,32.42]
[1751255730274,3.05077839,151.89,151.84,32.42]
[1751255731162,142.28412417,151.91,151.84,32.42]
[1751255731365,3.05077839,151.9,151.84,32.42]
[1751255731774,5.2661,151.87,151.84,32.42]
[1751255733377,5.2662,151.86,151.84,32.42]
[1751255735377,5.2665,151.85,151.84,32.42]
[1751255738969,5.2662,151.86,151.84,32.42]
[1751255747985,5.2659,151.87,151.84,37.6868]
[1751255750881,5.2662,151.86,151.84,32.42]
[1751255751278,66.96957553,151.89,151.84,32.42]
[1751255751279,5.2665,151.85,151.84,32.42]
[1751255768993,5.2665,151.85,151.83,1.95366075]
[1751255769196,5.2668,151.84,151.83,1.95366075]
[1751255769793,5.2668,151.84,151.82,34.89366075]
[1751255772503,5.2668,151.84,151.83,1.95366075]
[1751255774093,5.2668,151.84,151.82,32.94]
[1751255774299,5.2668,151.84,151.83,1.95348208]
[1751255778204,5.2668,151.84,151.82,32.94]
[1751255778502,5.2668,151.84,151.82,34.89348208]
[1751255786108,5.2668,151.84,151.82,32.94]
[1751255786309,5.2668,151.84,151.82,34.89348208]
[1751255787405,73.10882765,151.89,151.82,40.16098208]
[1751255787611,66.96957553,151.89,151.84,1.95348208]
[1751255787908,66.96957553,151.89,151.86,1.95348208]
[1751255788110,66.96957553,151.89,151.86,34.89276644]
[1751255788311,5.2654,151.88,151.86,34.89276644]
[1751255790114,5.2652,151.89,151.87,1.95276644]
[1751255790308,5.2652,151.89,151.88,1.95276644]
[1751255792506,5.2652,151.89,151.87,1.95276644]
[1751255795617,5.2654,151.88,151.87,1.95276644]
[1751255813930,5.2658,151.87,151.86,32.94]
[1751255814931,5.2658,151.87,151.84,1.95276644]
[1751255814932,5.2663,151.86,151.85,32.72]
[1751255815232,5.2663,151.86,151.84,1.95276644]
[1751255815432,5.2663,151.86,151.85,32.72]
[1751255816433,5.2663,151.86,151.85,34.67276644]
[1751255823543,5.2663,151.86,151.85,32.72]
[1751255823741,5.2663,151.86,151.85,34.67276644]
[1751255827943,5.2663,151.86,151.85,32.72]
[1751255838353,7.21866644,151.87,151.85,32.72]
[1751255838555,5.2659,151.87,151.85,34.67276644]
[1751255839256,5.2659,151.87,151.86,1.95276644]
[1751255842062,5.2656,151.88,151.86,1.95276644]
[1751255842366,5.2656,151.88,151.87,1.95276644]
[1751255845258,5.2656,151.88,151.85,37.9864]
[1751255845462,5.2656,151.88,151.87,1.95276644]
[1751255848469,5.2658,151.87,151.85,32.72]
[1751255848665,5.2658,151.87,151.86,1.95276644]
[1751255855470,5.2657,151.88,151.85,37.9864]
[1751255855769,5.2657,151.88,151.86,1.95276644]
[1751255866980,5.2658,151.87,151.85,32.72]
[1751255868083,5.2661,151.86,151.85,32.72]
[1751255872388,5.2661,151.86,151.85,34.67276644]
[1751255879095,5.2661,151.86,151.85,32.72]
[1751255879494,5.2661,151.86,151.85,34.67276644]
[1751255880995,5.2659,151.87,151.85,34.67276644]
[1751255885499,5.2661,151.86,151.85,34.67276644]
[1751255887506,5.2661,151.86,151.85,32.72]
[1751255889199,5.2665,151.85,151.83,1.95276644]
[1751255889497,1.95437733,151.84,151.79,6.15591628]
[1751255889696,1.95437733,151.83,151.8,32.48]
[1751255889895,7.22207733,151.82,151.8,32.48]
[1751255891002,7.22227733,151.81,151.8,32.48]
[1751255892204,5.2679,151.81,151.8,32.48]
[1751255892503,5.2677,151.82,151.8,34.43437733]
[1751255896205,5.2679,151.81,151.8,34.43437733]
[1751255896405,5.2679,151.81,151.8,32.48]
[1751255902712,5.2679,151.81,151.79,1.95437733]
[1751255902913,5.2679,151.81,151.8,32.48]
[1751255904314,5.2679,151.81,151.79,1.95437733]
[1751255904516,5.2679,151.81,151.78,355.52]
[1751255904716,5.2679,151.81,151.79,34.43437733]
[1751255909622,5.2679,151.81,151.79,1.95437733]
[1751255909823,5.2679,151.81,151.8,32.48]
[1751255912027,5.2679,151.81,151.79,1.95437733]
[1751255912228,5.2679,151.81,151.8,32.48]
[1751255913830,5.2679,151.81,151.79,1.95437733]
[1751255914129,5.2679,151.81,151.8,32.48]
[1751255914626,5.2677,151.82,151.8,32.48]
[1751255915129,5.2677,151.82,151.8,34.43437733]
[1751255916530,5.2677,151.82,151.8,32.48]
[1751255917625,5.2677,151.82,151.8,34.43437733]
[1751255918031,5.2677,151.82,151.8,1.95437733]
[1751255918332,5.2677,151.82,151.8,34.41437733]
[1751255918631,5.2679,151.81,151.8,34.41437733]
[1751255918930,5.2679,151.81,151.8,1.95437733]
[1751255919131,5.2679,151.81,151.8,34.41437733]
[1751255920532,5.2679,151.81,151.8,32.46]
[1751255921439,5.2679,151.81,151.8,34.41437733]
[1751255926049,5.2679,151.81,151.8,32.46]
[1751255934863,5.2676,151.82,151.8,34.4142259]
[1751255943860,1.9542259,151.84,151.8,34.4142259]
[1751255945660,5.2678,151.82,151.8,34.4142259]
[1751255953266,5.2678,151.82,151.8,40.57014218]
[1751255954170,5.2679,151.81,151.8,38.61591628]
[1751255954470,5.2679,151.81,151.8,32.46]
[1751255958969,1.95465034,151.81,151.77,6.15591628]
[1751255959174,1.95465034,151.81,151.78,32.44]
[1751255960575,5.2686,151.79,151.78,32.44]
[1751255970486,5.2684,151.8,151.78,32.44]
[1751255974191,5.2684,151.8,151.78,34.39465034]
[1751255982796,5.2684,151.8,151.78,32.44]
[1751255994309,5.2684,151.8,151.78,34.39465034]
[1751255998317,5.2684,151.8,151.78,32.44]
[1751256008022,5.2684,151.8,151.78,34.39493366]
[1751256009021,5.2684,151.8,151.78,34.39476884]
[1751256009220,5.2684,151.8,151.78,40.55068512]
[1751256010923,5.2686,151.79,151.78,38.59591628]
[1751256011223,5.2686,151.79,151.78,32.44]
[1751256014120,66.96957553,151.83,151.78,34.39496367]
[1751256014325,1.95496367,151.86,151.82,6.15591628]
[1751256014623,1.95496367,151.86,151.81,1.95496367]
[1751256014624,5.2671,151.84,151.81,1.95496367]
[1751256014824,5.2671,151.84,151.82,34.3539055]
[1751256016425,7.2211055,151.83,151.82,32.4]
[1751256016824,1.9539055,151.83,151.79,38.55591628]
[1751256017030,1.9539055,151.82,151.79,38.55591628]
[1751256017326,1.9539055,151.82,151.79,32.4]
[1751256017527,5.2682,151.8,151.79,32.4]
[1751256019731,7.2221055,151.8,151.79,32.4]
[1751256020432,5.2689,151.78,151.77,6.15591628]
[1751256020628,7.2228055,151.78,151.77,6.15591628]
[1751256020929,5.2693,151.77,151.76,6.15591628]
[1751256021134,5.2693,151.77,151.75,38.55591628]
[1751256021828,5.2693,151.77,151.75,40.50982178]
[1751256023028,5.2696,151.76,151.75,38.55591628]
[1751256023328,5.2696,151.76,151.75,32.4]
[1751256024536,1.9539055,151.76,151.73,32.4]
[1751256024931,1.9539055,151.77,151.73,34.3539055]
[1751256025133,5.2702,151.75,151.73,34.3539055]
[1751256025733,1.9539055,151.77,151.73,34.3539055]
[1751256026236,1.9539055,151.77,151.73,32.4]
[1751256027537,5.2703,151.74,151.73,32.4]
[1751256027934,7.2242055,151.74,151.73,32.4]
[1751256029937,5.2703,151.74,151.73,32.4]
[1751256039452,5.27,151.75,151.73,34.3539055]
[1751256039650,68.92348103,151.77,151.73,34.3539055]
[1751256039856,1.9539055,151.76,151.73,34.3539055]
[1751256040047,1.9539055,151.76,151.73,32.4]
[1751256040246,5.2702,151.75,151.73,32.4]
[1751256044255,7.2236055,151.76,151.73,34.3539055]
[1751256044456,66.96957553,151.77,151.75,1.9539055]
[1751256045756,5.2696,151.76,151.75,1.9539055]
[1751256049259,72.23887553,151.77,151.75,1.9539055]
[1751256049456,66.96957553,151.82,151.76,1.9539055]
[1751256049756,118.77457764,151.87,151.81,1.9539055]
[1751256049757,1.9539055,151.86,151.81,1.9539055]
[1751256049958,80.25532552,151.87,151.84,1.9539055]
[1751256050354,5.2664,151.86,151.84,1.9539055]
[1751256050861,80.25532552,151.87,151.81,32.38]
[1751256051051,1.9539055,151.84,151.81,32.38]
[1751256051558,5.2673,151.83,151.82,1.9539055]
[1751256051755,5.2673,151.83,151.81,35.43256929]
[1751256057761,5.2669,151.84,151.81,35.43256929]
[1751256057963,83.30789481,151.87,151.81,32.38]
[1751256058263,83.30789481,151.87,151.81,35.43256929]
[1751256058566,83.30789481,151.87,151.81,3.05256929]
[1751256058759,83.30789481,151.87,151.82,32.38]
[1751256058956,83.30789481,151.87,151.81,3.05256929]
[1751256059161,83.30789481,151.87,151.82,32.38]
[1751256059462,5.2666,151.85,151.82,32.38]
[1751256060164,5.267,151.84,151.82,32.38]
[1751256060963,5.267,151.84,151.8,8.32046929]
[1751256061164,5.267,151.84,151.82,32.38]
[1751256061861,5.267,151.84,151.8,8.32046929]
[1751256062162,5.267,151.84,151.81,32.38]
[1751256063362,5.267,151.84,151.82,32.36]
[1751256063570,5.2672,151.83,151.82,32.36]
[1751256071568,3.05256929,151.85,151.79,2.3148]
[1751256071770,66.96957553,151.86,151.77,32.36]
[1751256071771,3.05256929,151.83,151.77,32.36]
[1751256073275,5.2685,151.8,151.77,32.36]
[1751256073781,5.2685,151.8,151.77,34.31493662]
[1751256074975,66.96957553,151.85,151.79,1.95493662]
[1751256075174,1.95493662,151.84,151.81,1.95493662]
[1751256075372,68.92451215,151.85,151.81,1.95493662]
[1751256075874,5.2677,151.82,151.79,8.3216675]
[1751256076975,5.2673,151.83,151.8,5.2682]
[1751256077177,5.2673,151.83,151.81,32.36]
[1751256079375,66.96957553,151.85,151.81,35.4132675]
[1751256080680,2.1633,151.91,151.83,3.0532675]
[1751256080681,66.96957553,151.9,151.83,3.0532675]
[1751256080870,66.96957553,151.9,151.85,3.0532675]
[1751256081180,66.96957553,151.9,151.85,35.4132675]
[1751256081578,5.2661,151.86,151.85,32.36]
[1751256088286,5.2657,151.88,151.85,32.36]
[1751256088485,5.2657,151.88,151.85,35.4132675]
[1751256089685,5.2657,151.88,151.85,40.6796675]
[1751256089884,66.96957553,151.89,151.85,32.36]
[1751256090488,5.2659,151.87,151.85,32.36]